fUSD/lending_fUSD_20240224
["ID","MTS","AMOUNT","RATE_DAILY","PERIOD"]
[315080692,1708803195901,-2381.54717247,0.000278,2]
[315080693,1708803195911,-500.0,0.00027945,2]
[315080694,1708803195920,-500.0,0.00027945,2]
[315080695,1708803195929,-500.0,0.00027945,2]
[315080696,1708803195939,-500.0,0.00027945,2]
[315080697,1708803195948,-500.0,0.00027945,2]
[315080698,1708803195958,-500.0,0.00028219,2]
[315080699,1708803195968,-500.0,0.00028219,2]
[315080700,1708803195977,-500.0,0.00028219,2]
[315080701,1708803195987,-500.0,0.00028219,2]
[315080702,1708803195996,-239.88,0.00028493,2]
[315080703,1708803196006,-500.0,0.00028493,2]
[315080704,1708803196015,-500.0,0.00028493,2]
[315080705,1708803196026,-743.90987734,0.00028767,2]
[315080706,1708803196035,-500.0,0.00028767,2]
[315080707,1708803196045,-500.0,0.00028767,2]
[315080708,1708803196054,-500.0,0.00028767,2]
[315080709,1708803196068,-981.12,0.00029041,2]
[315080710,1708803196077,-263.03841909,0.00029041,2]
[315080711,1708803196087,-500.0,0.00029041,2]
[315080712,1708803196096,-500.0,0.00029041,2]
[315080713,1708803196107,-1004.86579903,0.00029315,2]
[315080714,1708803196119,-981.12,0.00029315,2]
[315080715,1708803196129,-500.0,0.00029315,2]
[315080716,1708803196140,-2325.67,0.00029589,2]
[315080717,1708803196150,-500.0,0.00029589,2]
[315080718,1708803196159,-981.12,0.00029589,2]
[315080719,1708803196169,-500.0,0.00029589,2]
[315080720,1708803196179,-2325.67,0.00029863,2]
[315080721,1708803196188,-500.0,0.00029863,2]
[315080722,1708803196198,-981.12,0.00029863,2]
[315080723,1708803196207,-500.0,0.00029863,2]
[315080724,1708803196217,-11507.12451309,0.0002988,2]
[315080725,1708803196247,-500.0,0.00027671,2]
[315080726,1708803196256,-2150.39642541,0.000278,2]
[315080727,1708803196276,-231.15074706,0.000278,2]
[315080728,1708803196286,-500.0,0.00027945,2]
[315080729,1708803196295,-500.0,0.00028493,2]
[315080730,1708803196304,-500.0,0.00028767,2]
[315080731,1708803196314,-402.42811978,0.0002988,2]
[315080732,1708803754152,206.0,0.00022547,2]
[315080737,1708804013151,180.13,0.00025275,120]
[315080739,1708804121578,157.51998999,0.00025149,15]
[315081189,1708804232168,-346.04,0.00023448,2]
[315081190,1708804232178,-1250.0,0.00025,3]
[315081191,1708804232188,-659.50596996,0.00025,2]
[315081192,1708804232197,-150.0,0.00025199,2]
[315081193,1708804232207,-150.0,0.00025199,2]
[315081194,1708804232217,-31984.0,0.000252,2]
[315081195,1708804232226,-250.0,0.00025301,2]
[315081196,1708804232236,-1025.88,0.00025302,2]
[315081197,1708804232245,-23900.0,0.00025306,2]
[315081198,1708804232255,-156.12,0.00025316,2]
[315081199,1708804232264,-164.34,0.0002532,2]
[315081200,1708804232273,-1224.59,0.00025342,2]
[315081201,1708804232282,-1811.25,0.00025372,2]
[315081202,1708804232291,-155.77849932,0.000254,2]
[315081203,1708804232301,-250.0,0.00025402,2]
[315081204,1708804232311,-175.4,0.000255,2]
[315081205,1708804232321,-150.0,0.00025589,2]
[315081206,1708804232330,-155.36,0.00025591,2]
[315081207,1708804232339,-580.01,0.0002562,2]
[315081208,1708804232349,-2051.64,0.0002562,2]
[315081209,1708804232361,-159.51,0.00025645,2]
[315081210,1708804232370,-479.07,0.00025688,2]
[315081211,1708804232381,-250.0,0.00025706,2]
[315081212,1708804232390,-346.04,0.00025712,2]
[315081213,1708804232399,-155.77849926,0.00025745,2]
[315081214,1708804232409,-1000.0,0.00026001,2]
[315081215,1708804232418,-155.36,0.00026036,2]
[315081216,1708804232427,-150.0,0.00026079,2]
[315081217,1708804232438,-155.77849926,0.0002609,2]
[315081218,1708804232448,-165.56,0.0002622,2]
[315081220,1708804232457,-206.0,0.00026229,2]
[315081222,1708804232466,-209.0,0.00026229,2]
[315081223,1708804232475,-169.0753,0.00026391,2]
[315081225,1708804232484,-155.77849926,0.00026436,2]
[315081227,1708804232493,-155.36,0.0002648,2]
[315081229,1708804232503,-500.0,0.00026481,3]
[315081232,1708804232513,-7974.70803345,0.00026491,2]
[315081239,1708804232565,-6210.04068761,0.00026491,2]
[315081241,1708804232574,-4885.46554192,0.00026491,2]
[315081243,1708804232584,-14377.13820992,0.00026491,2]
[315081245,1708804232595,-11415.43992604,0.00026491,2]
[315081249,1708804232623,-255.4812832,0.00026491,2]
[315081251,1708804232635,-864.68441708,0.00026491,2]
[315081254,1708804232650,-4084.00309949,0.00026491,2]
[315081258,1708804232678,-19003.25306427,0.00026491,2]
[315081260,1708804232687,-5493.30916688,0.00026491,2]
[315081262,1708804232697,-822.0,0.000265,2]
[315081264,1708804232706,-2292.0,0.000265,2]
[315081266,1708804232715,-3718.913,0.000265,2]
[315081268,1708804232724,-1554.08,0.0002664,2]
[315081270,1708804232734,-155.77849926,0.00026781,2]
[315081272,1708804232744,-178.78735138,0.00026865,2]
[315081273,1708804232754,-300.0,0.00026879,2]
[315081275,1708804232764,-300.0,0.00026879,2]
[315081278,1708804232774,-300.0,0.00026879,2]
[315081279,1708804232784,-300.0,0.00026879,2]
[315081282,1708804232793,-300.0,0.00026879,2]
[315081283,1708804232803,-300.0,0.00026879,2]
[315081285,1708804232812,-300.0,0.00026879,2]
[315081287,1708804232822,-300.0,0.00026879,2]
[315081289,1708804232831,-300.0,0.00026879,2]
[315081291,1708804232841,-307.0,0.000269,2]
[315081294,1708804232851,-155.36,0.00026925,2]
[315081295,1708804232860,-10000.0,0.00027,3]
[315081298,1708804232870,-1500.0,0.00027,2]
[315081300,1708804232881,-1808.0,0.00027,2]
[315081302,1708804232892,-1000.0,0.00027096,2]
[315081304,1708804232901,-1000.0,0.000271,2]
[315081306,1708804232911,-1061.86229454,0.00027118,2]
[315081308,1708804232920,-155.77849926,0.00027126,2]
[315081309,1708804232929,-2858.15972839,0.00027129,2]
[315081311,1708804232938,-5622.25309096,0.00027129,2]
[315081313,1708804232948,-150.0,0.00027164,2]
[315081315,1708804232957,-93149.9844,0.00027196,2]
[315081317,1708804232968,-580.01,0.00027264,2]
[315081319,1708804232977,-5000.0,0.00027297,2]
[315081321,1708804232988,-55555.0,0.00027297,2]
[315081323,1708804232998,-250.51987064,0.00027297,2]
[315081325,1708804233007,-1687.12445778,0.00027297,2]
[315081327,1708804233018,-538.08558982,0.00027297,2]
[315081328,1708804233029,-251.0,0.00027341,2]
[315081329,1708804233039,-485.0,0.00027341,2]
[315081330,1708804233049,-157.57060608,0.00027387,2]
[315081331,1708804233059,-8864.3532178,0.0002739,4]
[315081332,1708804233069,-155.0,0.00027396,2]
[315081333,1708804233079,-500.0,0.00027397,2]
[315081334,1708804233089,-500.0,0.00027397,2]
[315081335,1708804233099,-500.0,0.00027397,2]
[315081336,1708804233109,-505.33780641,0.00027397,2]
[315081337,1708804233119,-500.0,0.00027397,2]
[315081338,1708804233129,-500.0,0.00027397,2]
[315081339,1708804233138,-500.0,0.00027397,2]
[315081340,1708804233148,-500.0,0.00027397,2]
[315081341,1708804233159,-500.0,0.00027397,2]
[315081342,1708804233168,-500.0,0.00027397,2]
[315081343,1708804233178,-500.0,0.00027397,2]
[315081344,1708804233188,-503.50513415,0.00027397,2]
[315081345,1708804233197,-500.0,0.00027397,2]
[315081346,1708804233207,-500.0,0.00027397,2]
[315081347,1708804233216,-500.0,0.00027397,2]
[315081348,1708804233226,-500.0,0.00027397,2]
[315081349,1708804233235,-500.0,0.00027397,2]
[315081350,1708804233245,-598.32571948,0.00027397,2]
[315081351,1708804233254,-500.0,0.00027397,2]
[315081352,1708804233265,-500.0,0.00027397,2]
[315081353,1708804233274,-500.0,0.00027397,2]
[315081354,1708804233283,-500.0,0.00027397,2]
[315081355,1708804233293,-500.0,0.00027397,2]
[315081356,1708804233302,-512.89142477,0.00027397,2]
[315081357,1708804233312,-500.0,0.00027397,2]
[315081358,1708804233322,-286.61387536,0.00027397,2]
[315081362,1708804238138,-213.38612464,0.00027397,2]
[315081363,1708804238147,-500.0,0.00027397,2]
[315081364,1708804238157,-500.0,0.00027397,2]
[315081365,1708804238166,-500.0,0.00027397,2]
[315081366,1708804238175,-306.41387536,0.00027397,2]
[315081367,1708804238187,-193.58612464,0.00027397,2]
[315081368,1708804238196,-500.0,0.00027397,2]
[315081369,1708804238206,-500.0,0.00027397,2]
[315081370,1708804238215,-14.01387536,0.00027397,2]
[315081371,1708804238227,-485.98612464,0.00027397,2]
[315081372,1708804238237,-500.0,0.00027397,2]
[315081373,1708804238246,-90.71387536,0.00027397,2]
[315081374,1708804238258,-305.51235568,0.00027397,2]
[315081375,1708804238275,-103.77376896,0.00027397,2]
[315081376,1708804238284,-500.0,0.00027397,2]
[315081377,1708804238293,-500.0,0.00027397,2]
[315081378,1708804238302,-500.0,0.00027397,2]
[315081379,1708804238312,-500.0,0.00027397,2]
[315081380,1708804238322,-500.0,0.00027397,2]
[315081381,1708804238331,-503.12374039,0.00027397,2]
[315081382,1708804238341,-500.0,0.00027397,2]
[315081383,1708804238350,-285.51052294,0.00027397,2]
[315081384,1708804238361,-387.92509437,0.00027397,2]
[315081385,1708804238371,-500.0,0.00027397,2]
[315081386,1708804238380,-335.01208856,0.00027397,2]
[315081387,1708804238394,-164.98791144,0.00027397,2]
[315081388,1708804238404,-500.0,0.00027397,2]
[315081389,1708804238414,-500.0,0.00027397,2]
[315081390,1708804238423,-500.0,0.00027397,2]
[315081392,1708804238433,-5.65409095,0.00027397,2]
[315081394,1708804238446,-275.96458678,0.00027397,2]
[315081397,1708804238467,-218.38132227,0.00027397,2]
[315081398,1708804238477,-500.0,0.00027397,2]
[315081400,1708804238486,-500.0,0.00027397,2]
[315081403,1708804238496,-1.82643679,0.00027397,2]
[315081405,1708804238508,-498.17356321,0.00027397,2]
[315081407,1708804238517,-308.27201834,0.00027397,2]
[315081409,1708804238526,-500.0,0.00027397,2]
[315081411,1708804238535,-500.0,0.00027397,2]
[315081413,1708804238544,-500.0,0.00027397,2]
[315081415,1708804238554,-500.0,0.00027397,2]
[315081417,1708804238563,-416.01603401,0.00027397,2]
[315081419,1708804238572,-500.0,0.00027397,2]
[315081421,1708804238581,-500.0,0.00027397,2]
[315081423,1708804238592,-500.0,0.00027397,2]
[315081424,1708804238600,-500.0,0.00027397,2]
[315081425,1708804238609,-500.0,0.00027397,2]
[315081427,1708804238619,-500.0,0.00027397,2]
[315081429,1708804238629,-500.0,0.00027397,2]
[315081431,1708804238638,-508.02733893,0.00027397,2]
[315081433,1708804238647,-67.17168109,0.00027397,2]
[315081436,1708804238660,-432.82831891,0.00027397,2]
[315081438,1708804238669,-36.8093623,0.00027397,2]
[315081440,1708804238681,-463.1906377,0.00027397,2]
[315081442,1708804238690,-500.0,0.00027397,2]
[315081444,1708804238700,-500.0,0.00027397,2]
[315081446,1708804238709,-500.0,0.00027397,2]
[315081448,1708804238718,-500.0,0.00027397,2]
[315081450,1708804238728,-500.0,0.00027397,2]
[315081452,1708804238738,-500.0,0.00027397,2]
[315081454,1708804238747,-500.0,0.00027397,2]
[315081456,1708804238758,-569.2,0.00027397,2]
[315081458,1708804238767,-500.0,0.00027397,2]
[315081460,1708804238777,-500.0,0.00027397,2]
[315081462,1708804238785,-786.27,0.00027397,2]
[315081464,1708804238795,-500.0,0.00027397,2]
[315081466,1708804238804,-500.0,0.00027397,2]
[315081468,1708804238814,-500.0,0.00027397,2]
[315081470,1708804238823,-500.0,0.00027397,2]
[315081472,1708804238832,-500.0,0.00027397,2]
[315081474,1708804238842,-511.08,0.00027397,2]
[315081475,1708804238851,-651.21,0.00027397,2]
[315081478,1708804238862,-500.0,0.00027397,2]
[315081480,1708804238871,-500.0,0.00027397,2]
[315081482,1708804238881,-2091.47,0.00027397,2]
[315081484,1708804238891,-686.6,0.00027397,2]
[315081486,1708804238900,-500.0,0.00027397,2]
[315081488,1708804238910,-500.0,0.00027397,2]
[315081489,1708804238920,-500.0,0.00027397,2]
[315081491,1708804238930,-500.0,0.00027397,2]
[315081493,1708804238939,-500.0,0.00027397,2]
[315081495,1708804238948,-500.0,0.00027397,2]
[315081497,1708804238957,-500.0,0.00027397,2]
[315081499,1708804238967,-500.0,0.00027397,2]
[315081501,1708804238977,-500.0,0.00027397,2]
[315081503,1708804238986,-500.0,0.00027397,2]
[315081505,1708804238995,-500.0,0.00027397,2]
[315081507,1708804239005,-500.0,0.00027397,2]
[315081509,1708804239015,-500.0,0.00027397,2]
[315081511,1708804239024,-500.0,0.00027397,2]
[315081513,1708804239033,-500.0,0.00027397,2]
[315081515,1708804239042,-637.19805511,0.00027397,2]
[315081517,1708804239051,-511.48,0.00027397,2]
[315081519,1708804239060,-500.0,0.00027397,2]
[315081521,1708804239069,-500.0,0.00027397,2]
[315081523,1708804239079,-571.99084142,0.00027397,2]
[315081525,1708804239088,-548.49156547,0.00027397,2]
[315081527,1708804239099,-500.0,0.00027397,2]
[315081529,1708804239108,-647.23,0.00027397,2]
[315081531,1708804239118,-500.0,0.00027397,2]
[315081533,1708804239127,-500.0,0.00027397,2]
[315081535,1708804239136,-500.0,0.00027397,2]
[315081537,1708804239146,-500.0,0.00027397,2]
[315081539,1708804239155,-500.0,0.00027397,2]
[315081541,1708804239164,-500.0,0.00027397,2]
[315081543,1708804239173,-500.0,0.00027397,2]
[315081545,1708804239182,-500.0,0.00027397,2]
[315081547,1708804239191,-500.0,0.00027397,2]
[315081549,1708804239201,-500.0,0.00027397,2]
[315081551,1708804239210,-500.0,0.00027397,2]
[315081553,1708804239220,-500.0,0.00027397,2]
[315081555,1708804239229,-500.0,0.00027397,2]
[315081557,1708804239239,-500.0,0.00027397,2]
[315081559,1708804239248,-500.0,0.00027397,2]
[315081561,1708804239257,-585.98326991,0.00027397,2]
[315081563,1708804239267,-525.80819767,0.00027397,2]
[315081565,1708804239276,-500.0,0.00027397,2]
[315081567,1708804239285,-500.0,0.00027397,2]
[315081569,1708804239295,-500.0,0.00027397,2]
[315081571,1708804239305,-500.0,0.00027397,2]
[315081573,1708804239314,-925.35,0.00027397,2]
[315081575,1708804239324,-500.0,0.00027397,2]
[315081577,1708804239333,-500.0,0.00027397,2]
[315081579,1708804239342,-500.0,0.00027397,2]
[315081581,1708804239352,-534.27402794,0.00027397,2]
[315081583,1708804239366,-691.71,0.00027397,2]
[315081585,1708804239375,-500.0,0.00027397,2]
[315081587,1708804239385,-500.0,0.00027397,2]
[315081589,1708804239395,-500.0,0.00027397,2]
[315081591,1708804239406,-500.0,0.00027397,2]
[315081593,1708804239416,-500.0,0.00027397,2]
[315081595,1708804239425,-500.0,0.00027397,2]
[315081597,1708804239435,-500.0,0.00027397,2]
[315081599,1708804239446,-240.67801659,0.00027397,2]
[315081601,1708804239455,-500.0,0.00027397,2]
[315081603,1708804239465,-500.0,0.00027397,2]
[315081605,1708804239474,-500.0,0.00027397,2]
[315081607,1708804239484,-500.0,0.00027397,2]
[315081609,1708804239493,-500.0,0.00027397,2]
[315081611,1708804239502,-500.0,0.00027397,2]
[315081613,1708804239512,-500.0,0.00027397,2]
[315081615,1708804239521,-579.27196398,0.00027397,2]
[315081617,1708804239531,-500.0,0.00027397,2]
[315081619,1708804239540,-500.0,0.00027397,2]
[315081621,1708804239550,-500.0,0.00027397,2]
[315081623,1708804239560,-500.0,0.00027397,2]
[315081625,1708804239570,-500.0,0.00027397,2]
[315081627,1708804239579,-500.0,0.00027397,2]
[315081629,1708804239589,-500.0,0.00027397,2]
[315081631,1708804239600,-500.0,0.00027397,2]
[315081633,1708804239609,-500.0,0.00027397,2]
[315081635,1708804239619,-500.0,0.00027397,2]
[315081637,1708804239629,-500.0,0.00027397,2]
[315081639,1708804239638,-500.0,0.00027397,2]
[315081641,1708804239647,-500.0,0.00027397,2]
[315081643,1708804239657,-500.0,0.00027397,2]
[315081645,1708804239667,-500.0,0.00027397,2]
[315081647,1708804239676,-500.0,0.00027397,2]
[315081649,1708804239685,-500.0,0.00027397,2]
[315081651,1708804239694,-500.0,0.00027397,2]
[315081653,1708804239704,-500.0,0.00027397,2]
[315081656,1708804239713,-500.0,0.00027397,2]
[315081657,1708804239723,-493.88172654,0.00027397,2]
[315081660,1708804239732,-500.0,0.00027397,2]
[315081661,1708804239741,-500.0,0.00027397,2]
[315081663,1708804239750,-500.0,0.00027397,2]
[315081665,1708804239759,-500.0,0.00027397,2]
[315081666,1708804239769,-500.0,0.00027397,2]
[315081667,1708804239778,-500.0,0.00027397,2]
[315081668,1708804239787,-500.0,0.00027397,2]
[315081669,1708804239796,-500.0,0.00027397,2]
[315081670,1708804239805,-500.0,0.00027397,2]
[315081671,1708804239814,-500.0,0.00027397,2]
[315081672,1708804239822,-500.0,0.00027397,2]
[315081673,1708804239831,-500.0,0.00027397,2]
[315081674,1708804239840,-150.20148907,0.00027397,2]
[315081675,1708804239860,-500.0,0.00027397,2]
[315081676,1708804239871,-500.0,0.00027397,2]
[315081677,1708804239880,-500.0,0.00027397,2]
[315081678,1708804239891,-554.8,0.00027397,2]
[315081680,1708804239901,-500.0,0.00027397,2]
[315081682,1708804239912,-500.0,0.00027397,2]
[315081684,1708804239922,-500.0,0.00027397,2]
[315081686,1708804239932,-500.0,0.00027397,2]
[315081689,1708804239942,-500.0,0.00027397,2]
[315081691,1708804239952,-500.0,0.00027397,2]
[315081693,1708804239962,-500.0,0.00027397,2]
[315081695,1708804239972,-500.0,0.00027397,2]
[315081697,1708804239981,-500.0,0.00027397,2]
[315081700,1708804239991,-500.0,0.00027397,2]
[315081702,1708804240001,-500.0,0.00027397,2]
[315081704,1708804240011,-500.0,0.00027397,2]
[315081706,1708804240022,-500.0,0.00027397,2]
[315081708,1708804240032,-500.0,0.00027397,2]
[315081710,1708804240042,-500.0,0.00027397,2]
[315081712,1708804240051,-500.0,0.00027397,2]
[315081714,1708804240061,-500.0,0.00027397,2]
[315081716,1708804240071,-500.0,0.00027397,2]
[315081718,1708804240081,-500.0,0.00027397,2]
[315081720,1708804240090,-500.0,0.00027397,2]
[315081722,1708804240100,-500.0,0.00027397,2]
[315081724,1708804240110,-500.0,0.00027397,2]
[315081726,1708804240120,-500.0,0.00027397,2]
[315081728,1708804240129,-500.0,0.00027397,2]
[315081730,1708804240139,-500.0,0.00027397,2]
[315081732,1708804240148,-500.0,0.00027397,2]
[315081734,1708804240158,-500.0,0.00027397,2]
[315081736,1708804240168,-500.0,0.00027397,2]
[315081738,1708804240177,-500.0,0.00027397,2]
[315081740,1708804240187,-500.0,0.00027397,2]
[315081742,1708804240196,-500.0,0.00027397,2]
[315081744,1708804240206,-211.37956024,0.00027397,2]
[315081746,1708804240216,-500.0,0.00027397,2]
[315081749,1708804240225,-500.0,0.00027397,2]
[315081751,1708804240235,-500.0,0.00027397,2]
[315081753,1708804240244,-500.0,0.00027397,2]
[315081755,1708804240254,-500.0,0.00027397,2]
[315081757,1708804240263,-500.0,0.00027397,2]
[315081759,1708804240273,-500.0,0.00027397,2]
[315081761,1708804240287,-500.0,0.00027397,2]
[315081763,1708804240297,-500.0,0.00027397,2]
[315081820,1708804240781,-355.09898352,0.00027397,2]
[315081822,1708804240791,-500.0,0.00027397,2]
[315081824,1708804240801,-500.0,0.00027397,2]
[315081826,1708804240811,-630.73514528,0.00027397,2]
[315081828,1708804240821,-500.0,0.00027397,2]
[315081830,1708804240830,-500.0,0.00027397,2]
[315081832,1708804240844,-316.56194767,0.00027397,2]
[315081834,1708804240854,-500.0,0.00027397,2]
[315081836,1708804240863,-559.11,0.00027397,2]
[315081838,1708804240873,-500.0,0.00027397,2]
[315081840,1708804240882,-500.0,0.00027397,2]
[315081842,1708804240892,-500.0,0.00027397,2]
[315081844,1708804240901,-500.0,0.00027397,2]
[315081846,1708804240911,-500.0,0.00027397,2]
[315081848,1708804240920,-500.0,0.00027397,2]
[315081850,1708804240930,-500.0,0.00027397,2]
[315081853,1708804240940,-500.0,0.00027397,2]
[315081854,1708804240950,-500.0,0.00027397,2]
[315081857,1708804240959,-500.0,0.00027397,2]
[315081859,1708804240969,-500.0,0.00027397,2]
[315081861,1708804240978,-500.0,0.00027397,2]
[315081863,1708804240988,-713.93,0.00027397,2]
[315081865,1708804240997,-448.84447017,0.00027397,2]
[315081867,1708804241007,-500.0,0.00027397,2]
[315081869,1708804241016,-500.0,0.00027397,2]
[315081871,1708804241030,-500.0,0.00027397,2]
[315081873,1708804241040,-500.0,0.00027397,2]
[315081875,1708804241049,-504.6470759,0.00027397,2]
[315081877,1708804241059,-500.0,0.00027397,2]
[315081879,1708804241068,-500.0,0.00027397,2]
[315081881,1708804241077,-500.0,0.00027397,2]
[315081883,1708804241086,-500.0,0.00027397,2]
[315081885,1708804241096,-500.0,0.00027397,2]
[315081887,1708804241106,-500.0,0.00027397,2]
[315081889,1708804241116,-500.0,0.00027397,2]
[315081892,1708804241125,-584.5,0.00027397,2]
[315081894,1708804241136,-500.0,0.00027397,2]
[315081896,1708804241145,-500.0,0.00027397,2]
[315081898,1708804241155,-500.0,0.00027397,2]
[315081900,1708804241165,-500.0,0.00027397,2]
[315081902,1708804241174,-500.0,0.00027397,2]
[315081904,1708804241184,-500.0,0.00027397,2]
[315081906,1708804241193,-533.96985433,0.00027397,2]
[315081908,1708804241202,-500.0,0.00027397,2]
[315081910,1708804241211,-500.0,0.00027397,2]
[315081912,1708804241221,-500.0,0.00027397,2]
[315081914,1708804241230,-500.0,0.00027397,2]
[315081916,1708804241239,-692.51,0.00027397,2]
[315081918,1708804241248,-500.0,0.00027397,2]
[315081920,1708804241258,-500.0,0.00027397,2]
[315081922,1708804241268,-500.0,0.00027397,2]
[315081924,1708804241277,-500.0,0.00027397,2]
[315081926,1708804241286,-500.0,0.00027397,2]
[315081928,1708804241296,-500.0,0.00027397,2]
[315081930,1708804241305,-500.0,0.00027397,2]
[315081932,1708804241314,-500.0,0.00027397,2]
[315081934,1708804241324,-500.0,0.00027397,2]
[315081936,1708804241334,-500.0,0.00027397,2]
[315081938,1708804241344,-500.0,0.00027397,2]
[315081940,1708804241354,-500.0,0.00027397,2]
[315081942,1708804241366,-500.0,0.00027397,2]
[315081944,1708804241375,-500.0,0.00027397,2]
[315081946,1708804241385,-500.0,0.00027397,2]
[315081948,1708804241394,-355.21015122,0.00027397,2]
[315081950,1708804241404,-500.0,0.00027397,2]
[315081952,1708804241414,-500.0,0.00027397,2]
[315081954,1708804241423,-500.0,0.00027397,2]
[315081956,1708804241432,-500.0,0.00027397,2]
[315081958,1708804241444,-500.0,0.00027397,2]
[315081960,1708804241455,-517.73,0.00027397,2]
[315081963,1708804241465,-500.0,0.00027397,2]
[315081965,1708804241474,-500.0,0.00027397,2]
[315081967,1708804241483,-500.0,0.00027397,2]
[315081969,1708804241492,-500.0,0.00027397,2]
[315081971,1708804241500,-500.0,0.00027397,2]
[315081973,1708804241509,-500.0,0.00027397,2]
[315081975,1708804241521,-500.0,0.00027397,2]
[315081977,1708804241531,-500.0,0.00027397,2]
[315081979,1708804241540,-500.0,0.00027397,2]
[315081981,1708804241549,-500.0,0.00027397,2]
[315081983,1708804241558,-500.0,0.00027397,2]
[315081985,1708804241569,-615.94,0.00027397,2]
[315081987,1708804241578,-2216.62,0.00027397,2]
[315081989,1708804241588,-500.0,0.00027397,2]
[315081991,1708804241597,-352.94515216,0.00027397,2]
[315081993,1708804241606,-500.0,0.00027397,2]
[315081995,1708804241616,-500.0,0.00027397,2]
[315081997,1708804241625,-501.2687536,0.00027397,2]
[315081999,1708804241634,-500.0,0.00027397,2]
[315082001,1708804241643,-500.0,0.00027397,2]
[315082003,1708804241653,-500.0,0.00027397,2]
[315082005,1708804241662,-500.0,0.00027397,2]
[315082007,1708804241671,-534.98089159,0.00027397,2]
[315082009,1708804241681,-500.0,0.00027397,2]
[315082012,1708804241691,-500.0,0.00027397,2]
[315082013,1708804241701,-500.0,0.00027397,2]
[315082016,1708804241710,-500.0,0.00027397,2]
[315082018,1708804241720,-500.0,0.00027397,2]
[315082020,1708804241730,-501.96705665,0.00027397,2]
[315082022,1708804241739,-500.0,0.00027397,2]
[315082024,1708804241749,-500.0,0.00027397,2]
[315082026,1708804241758,-500.0,0.00027397,2]
[315082028,1708804241767,-500.0,0.00027397,2]
[315082030,1708804241777,-557.39,0.00027397,2]
[315082032,1708804241787,-500.0,0.00027397,2]
[315082034,1708804241796,-500.0,0.00027397,2]
[315082036,1708804241806,-518.09038132,0.00027397,2]
[315082038,1708804241815,-500.0,0.00027397,2]
[315082040,1708804241824,-500.0,0.00027397,2]
[315082042,1708804241834,-500.0,0.00027397,2]
[315082044,1708804241844,-500.0,0.00027397,2]
[315082046,1708804241854,-500.0,0.00027397,2]
[315082048,1708804241864,-500.0,0.00027397,2]
[315082050,1708804241873,-500.0,0.00027397,2]
[315082052,1708804241883,-376.1444298,0.00027397,2]
[315082054,1708804241895,-530.89,0.00027397,2]
[315082056,1708804241904,-500.0,0.00027397,2]
[315082058,1708804241915,-500.0,0.00027397,2]
[315082060,1708804241926,-522.30339584,0.00027397,2]
[315082062,1708804241935,-500.0,0.00027397,2]
[315082064,1708804241945,-500.0,0.00027397,2]
[315082066,1708804241955,-500.0,0.00027397,2]
[315082067,1708804241964,-500.0,0.00027397,2]
[315082068,1708804241974,-500.0,0.00027397,2]
[315082069,1708804241984,-500.0,0.00027397,2]